{"text_format":"1","workbook":"xlsx","n_sheets":3,"sheets":["Plnění parametrů v ŽoP","Pomocné hodnoty","SJP Pomocné hodnoty"],"not_rendered":{"charts":0,"images":3,"macros":1,"external_links":1,"defined_names":7,"comments":1,"pivot_tables":0},"unopened":[],"bounds":{"document_bytes":16777216,"sheet_cells":100000,"rows_first":2000,"rows_last":500,"rows_between":2000,"halvings":0,"cell_chars":16384,"cell_head_chars":4096},"cells_cut":0,"cells_raw":0,"read":"whole","date_system":"1900"}

{"sheet":"Plnění parametrů v ŽoP","index":0,"n_rows":117,"n_cols":16,"rows_kept":117,"cut":false,"hidden":false,"merged":[[92,3,92,5],[6,2,6,3],[7,2,7,3],[39,4,39,5],[85,4,85,5],[54,4,54,5],[66,4,66,5],[67,1,67,3],[42,1,44,1],[75,1,76,1],[91,3,91,18],[45,1,50,1],[88,3,88,5],[106,1,109,3],[111,0,116,3],[4,3,4,5],[0,0,3,7],[90,3,90,5],[94,3,94,5],[96,3,96,5],[15,0,15,1],[45,2,47,2],[48,2,50,2],[61,2,62,2],[19,1,20,1],[21,1,22,1],[25,1,26,1],[27,1,30,1],[61,1,62,1]]}
["Výkaz parametrů k žádosti o platbu",null,null,null,null,null,null,null,null,null,null,null,null,null,null,"verze 3.9.2025"]
[]
[]
[]
["Identifikace projektu",null,null,"Poznámka k vyplnění: Tabulka je optimalizována pro MS Excel 2010 a vyšší. Použití starší verze či jiného programu může způsobit problémy. Editujte pouze zelené buňky a zaškrtávací políčka, vybírejte z rozbalovacích menu. Řiďte se informacemi označenými červeným trojúhelníkem v pravém horním rohu buněk."]
[null,"Registrační číslo projektu"]
[null,"Název žadatele"]
[null,"Název projektu"]
[null,"Pořadí ŽoP",null,false]
[null,"Číslo výzvy","37., 38., 56., 57., 77., 78.","Příjemce má v rámci projektu nárok na částečný odpočet DPH","NE"]
[null,"Hodnota koeficientu k2",1.1000000000000001,"Jde o ŽoP na dofinancování DPH s částečným nárokem na odpočet","NE"]
[null,"DPH je v rámci projektu způsobilým výdajem","NE","Poměrný koeficient s nárokem na odpočet DPH"]
[null,"Procentní výše DPH pro realizaci",0.21,"Projekt je v režimu veřejné podpory dle GBER s nutností prokázání motivačního účinku podpory.","NE"]
[null,"Procento podpory z platného právního aktu (včetně dodatků)"]
[null,"CZPRV z KR+SJP odpovídajícího platnému právnímu aktu (vč. dodatků)"]
[]
[false,"1.1.1 Snížení energetické náročnosti veřejných budov a veřejné infrastruktury"]
[null,null,null,null,"hodnota parametru nárokovaná v aktuální ŽoP","jednotka","jednotkový náklad bez DPH","k1","k2","k3","jednotková dotace za opatření bez DPH","celková dotace za opatření bez DPH","Způsobilé přímérealizační výdaje"]
[null,"Plocha zateplovaných obvodových stěn",null,false,null,"m2",{"$f":"'SJP Pomocné hodnoty'!F17","v":4200},{"$f":"IF($D19=TRUE,'SJP Pomocné hodnoty'!G17+'SJP Pomocné hodnoty'!H17,'SJP Pomocné hodnoty'!G17)","v":1},{"$f":"'SJP Pomocné hodnoty'!R17","v":1.1000000000000001},{"$f":"IF(#REF!=\"A1\",#REF!,IF(#REF!=\"A2\",#REF!,0))","v":{"$error":"#REF!"}},{"$f":"G19*H19*I19*J19","v":{"$error":"#REF!"}},{"$f":"E19*K19","v":{"$error":"#REF!"}},{"$f":"E19*G19*H19*I19","v":0}]
[null,"Plocha měněných otvorových výplní (oken a dveří)","mimo LOP",false,null,"m2",{"$f":"'SJP Pomocné hodnoty'!F18","v":8900},{"$f":"IF($D20=TRUE,'SJP Pomocné hodnoty'!G18+'SJP Pomocné hodnoty'!H18,'SJP Pomocné hodnoty'!G18)","v":1},{"$f":"'SJP Pomocné hodnoty'!R18","v":1.1000000000000001},{"$f":"IF(#REF!=\"A1\",#REF!,IF(#REF!=\"A2\",#REF!,0))","v":{"$error":"#REF!"}},{"$f":"G20*H20*I20*J20","v":{"$error":"#REF!"}},{"$f":"E20*K20","v":{"$error":"#REF!"}},{"$f":"E20*G20*H20*I20","v":0}]
[null,null,"LOP",false,null,"m2",{"$f":"'SJP Pomocné hodnoty'!F19","v":8900},{"$f":"IF($D21=TRUE,'SJP Pomocné hodnoty'!G19+'SJP Pomocné hodnoty'!H19,'SJP Pomocné hodnoty'!G19)","v":1.3},{"$f":"'SJP Pomocné hodnoty'!R19","v":1.1000000000000001},{"$f":"IF(#REF!=\"A1\",#REF!,IF(#REF!=\"A2\",#REF!,0))","v":{"$error":"#REF!"}},{"$error":"#REF!"},{"$error":"#REF!"},0]
[null,"Plocha zateplovaných plochých či šikmých střech","nová skladba včetně paro a hydroizolace",false,null,"m2",{"$f":"'SJP Pomocné hodnoty'!F20","v":3200},{"$f":"IF($D22=TRUE,'SJP Pomocné hodnoty'!G20+'SJP Pomocné hodnoty'!H20,'SJP Pomocné hodnoty'!G20)","v":1},{"$f":"'SJP Pomocné hodnoty'!R20","v":1.1000000000000001},{"$f":"IF(#REF!=\"A1\",#REF!,IF(#REF!=\"A2\",#REF!,0))","v":{"$error":"#REF!"}},{"$error":"#REF!"},{"$error":"#REF!"},0]
[null,null,"pouze tepelná vrstva bez paro a hydroizolace",false,null,"m2",{"$f":"'SJP Pomocné hodnoty'!F21","v":3200},{"$f":"IF($D23=TRUE,'SJP Pomocné hodnoty'!G21+'SJP Pomocné hodnoty'!H21,'SJP Pomocné hodnoty'!G21)","v":0.2},{"$f":"'SJP Pomocné hodnoty'!R21","v":1.1000000000000001},{"$f":"IF(#REF!=\"A1\",#REF!,IF(#REF!=\"A2\",#REF!,0))","v":{"$error":"#REF!"}},{"$error":"#REF!"},{"$error":"#REF!"},0]
[null,"Plocha zateplovaných podlah na zemině",null,false,null,"m2",{"$f":"'SJP Pomocné hodnoty'!F22","v":4000},{"$f":"IF($D24=TRUE,'SJP Pomocné hodnoty'!G22+'SJP Pomocné hodnoty'!H22,'SJP Pomocné hodnoty'!G22)","v":1},{"$f":"'SJP Pomocné hodnoty'!R22","v":1.1000000000000001},{"$f":"IF(#REF!=\"A1\",#REF!,IF(#REF!=\"A2\",#REF!,0))","v":{"$error":"#REF!"}},{"$error":"#REF!"},{"$error":"#REF!"},0]
[null,"Plocha zateplovaných konstrukcí k nevytápěným prostorům",null,false,null,"m2",{"$f":"'SJP Pomocné hodnoty'!F23","v":1200},{"$f":"IF($D25=TRUE,'SJP Pomocné hodnoty'!G23+'SJP Pomocné hodnoty'!H23,'SJP Pomocné hodnoty'!G23)","v":1},{"$f":"'SJP Pomocné hodnoty'!R23","v":1.1000000000000001},{"$f":"IF(#REF!=\"A1\",#REF!,IF(#REF!=\"A2\",#REF!,0))","v":{"$error":"#REF!"}},{"$error":"#REF!"},{"$error":"#REF!"},0]
[null,"Celkový výkon nově instalovaných systémů nuceného větrání  - výukové prostory vzdělávacích budov","výkon na jednotku do 1500 m3",null,null,"počet žáků",{"$f":"'SJP Pomocné hodnoty'!F24","v":9800},{"$f":"IF($D26=TRUE,'SJP Pomocné hodnoty'!G24+'SJP Pomocné hodnoty'!H24,'SJP Pomocné hodnoty'!G24)","v":0.6},{"$f":"'SJP Pomocné hodnoty'!R24","v":1.1000000000000001},{"$f":"IF(#REF!=\"A1\",#REF!,IF(#REF!=\"A2\",#REF!,0))","v":{"$error":"#REF!"}},{"$error":"#REF!"},{"$error":"#REF!"},0]
[null,null,"výkon na jednotku nad 1500 m3",null,null,"počet žáků",{"$f":"'SJP Pomocné hodnoty'!F25","v":9800},{"$f":"IF($D27=TRUE,'SJP Pomocné hodnoty'!G25+'SJP Pomocné hodnoty'!H25,'SJP Pomocné hodnoty'!G25)","v":1},{"$f":"'SJP Pomocné hodnoty'!R25","v":1.1000000000000001},{"$f":"IF(#REF!=\"A1\",#REF!,IF(#REF!=\"A2\",#REF!,0))","v":{"$error":"#REF!"}},{"$error":"#REF!"},{"$error":"#REF!"},0]
[null,"Celkový výkon nově instalovaných systémů nuceného větrání s rekuperací - ostatní","výkon na jednotku do 1500 m3",null,null,"m3/hod",{"$f":"'SJP Pomocné hodnoty'!F26","v":390},{"$f":"IF($D28=TRUE,'SJP Pomocné hodnoty'!G26+'SJP Pomocné hodnoty'!H26,'SJP Pomocné hodnoty'!G26)","v":0.6},{"$f":"'SJP Pomocné hodnoty'!R26","v":1.1000000000000001},{"$f":"IF(#REF!=\"A1\",#REF!,IF(#REF!=\"A2\",#REF!,0))","v":{"$error":"#REF!"}},{"$error":"#REF!"},{"$error":"#REF!"},0]
[null,null,"výkon na jednotku nad 1500 m3 - regulace průtoku ON/OFF",null,null,"m3/hod",{"$f":"'SJP Pomocné hodnoty'!F27","v":390},{"$f":"IF($D29=TRUE,'SJP Pomocné hodnoty'!G27+'SJP Pomocné hodnoty'!H27,'SJP Pomocné hodnoty'!G27)","v":0.5},{"$f":"'SJP Pomocné hodnoty'!R27","v":1.1000000000000001},{"$f":"IF(#REF!=\"A1\",#REF!,IF(#REF!=\"A2\",#REF!,0))","v":{"$error":"#REF!"}},{"$error":"#REF!"},{"$error":"#REF!"},0]
[null,null,"výkon na jednotku nad 1500 m3 - regulace průtoku dle času, % výkonu jednotky a ostatní neuvedené",null,null,"m3/hod",{"$f":"'SJP Pomocné hodnoty'!F28","v":390},{"$f":"IF($D30=TRUE,'SJP Pomocné hodnoty'!G28+'SJP Pomocné hodnoty'!H28,'SJP Pomocné hodnoty'!G28)","v":0.7},{"$f":"'SJP Pomocné hodnoty'!R28","v":1.1000000000000001},{"$f":"IF(#REF!=\"A1\",#REF!,IF(#REF!=\"A2\",#REF!,0))","v":{"$error":"#REF!"}},{"$error":"#REF!"},{"$error":"#REF!"},0]
[null,null,"výkon na jednotku nad 1500 m3 - plynulá regulace, např. CO2",null,null,"m3/hod",{"$f":"'SJP Pomocné hodnoty'!F29","v":390},{"$f":"IF($D31=TRUE,'SJP Pomocné hodnoty'!G29+'SJP Pomocné hodnoty'!H29,'SJP Pomocné hodnoty'!G29)","v":1},{"$f":"'SJP Pomocné hodnoty'!R29","v":1.1000000000000001},{"$f":"IF(#REF!=\"A1\",#REF!,IF(#REF!=\"A2\",#REF!,0))","v":{"$error":"#REF!"}},{"$error":"#REF!"},{"$error":"#REF!"},0]
[null,"Další opatření mající prokazatelně vliv na snížení spotřeby primární energie z neobnovitelných zdrojů",null,null,null,"MWh/rok",{"$f":"'SJP Pomocné hodnoty'!F30","v":36100},{"$f":"IF($D32=TRUE,'SJP Pomocné hodnoty'!G30+'SJP Pomocné hodnoty'!H30,'SJP Pomocné hodnoty'!G30)","v":1.1000000000000001},{"$f":"'SJP Pomocné hodnoty'!R30","v":1.1000000000000001},{"$f":"IF(#REF!=\"A1\",#REF!,IF(#REF!=\"A2\",#REF!,0))","v":{"$error":"#REF!"}},{"$error":"#REF!"},{"$error":"#REF!"},0]
[]
[null,"Počet nově instalovaných dobíjecích stanic pro vozidla na elektropohon",null,null,null,"ks",{"$f":"'SJP Pomocné hodnoty'!F80","v":45000},{"$f":"'SJP Pomocné hodnoty'!G80","v":1},{"$f":"'SJP Pomocné hodnoty'!R80","v":1.1000000000000001},{"$f":"IF(#REF!=\"A1\",#REF!,IF(#REF!=\"A2\",#REF!,0))","v":{"$error":"#REF!"}},{"$error":"#REF!"},{"$f":"E34*K34","v":{"$error":"#REF!"}},0]
[null,"Počet realizovaných opatření k ochraně synantropních druhů ",null,null,null,"ks",{"$f":"'SJP Pomocné hodnoty'!F81","v":3000},{"$f":"'SJP Pomocné hodnoty'!G81","v":1},{"$f":"'SJP Pomocné hodnoty'!R81","v":1.1000000000000001},{"$f":"IF(#REF!=\"A1\",#REF!,IF(#REF!=\"A2\",#REF!,0))","v":{"$error":"#REF!"}},{"$error":"#REF!"},{"$f":"E35*K35","v":{"$error":"#REF!"}},0]
[]
[null,null,null,false]
[null,null,null,false]
[]
[null,"Způsobilé výdaje za opatření 1.1.1",null,null,{"$f":"IF(A17<>TRUE,0,IF($C$12<>\"ANO\",SUM(M19:M35),SUM(M19:M35)*(1+$C$13)))","v":0}]
[false,"1.1.3 Zlepšení kvality vnitřního prostředí veřejných budov"]
[null,null,null,null,"aktuální ŽoP","jednotka","jednotkový náklad bez DPH","k1","k2","k3","jednotková dotace za opatření bez DPH","celková dotace za opatření bez DPH","Způsobilé přímé realizační výdaje"]
[null,"Plocha výplní otvorů stíněných nově instalovanými vnějšími stínícími prvky orientovanými s odklonem větším než 25°od severu","ruční mechanické ovládání",null,null,"m2",{"$f":"'SJP Pomocné hodnoty'!F97","v":3700},{"$f":"'SJP Pomocné hodnoty'!G97","v":0.6},{"$f":"'SJP Pomocné hodnoty'!R97","v":1.1000000000000001},{"$f":"IF(#REF!=\"A1\",#REF!,IF(#REF!=\"A2\",#REF!,0))","v":{"$error":"#REF!"}},{"$f":"G43*H43*I43*J43","v":{"$error":"#REF!"}},{"$f":"E43*K43","v":{"$error":"#REF!"}},{"$f":"E43*G43*H43*I43","v":0}]
[null,null,"ruční elektronické ovládání",null,null,"m2",{"$f":"'SJP Pomocné hodnoty'!F98","v":3700},{"$f":"'SJP Pomocné hodnoty'!G98","v":0.9},{"$f":"'SJP Pomocné hodnoty'!R98","v":1.1000000000000001},{"$f":"IF(#REF!=\"A1\",#REF!,IF(#REF!=\"A2\",#REF!,0))","v":{"$error":"#REF!"}},{"$f":"G44*H44*I44*J44","v":{"$error":"#REF!"}},{"$error":"#REF!"},0]
[null,null,"automat. ovlád. na základě meteostanice s rozdělením orientace vůči svět. stranám",null,null,"m2",{"$f":"'SJP Pomocné hodnoty'!F99","v":3700},{"$f":"'SJP Pomocné hodnoty'!G99","v":1},{"$f":"'SJP Pomocné hodnoty'!R99","v":1.1000000000000001},{"$f":"IF(#REF!=\"A1\",#REF!,IF(#REF!=\"A2\",#REF!,0))","v":{"$error":"#REF!"}},{"$error":"#REF!"},{"$error":"#REF!"},0]
[null,"Podlahová plocha místností v nichž je modernizováno osvětlení na LED (výměna zdroje či svítidla / renovace svítidel a rozvodů / dynamické a biodynamické ovládání)","Chodby, komunikace, sklady a prostory s nižší int. osvětlení než 200 lux/m2","výměna zdrojů a svítidel za nová s LED technologií",null,"m2",{"$f":"'SJP Pomocné hodnoty'!F100","v":2000},{"$f":"'SJP Pomocné hodnoty'!G100","v":0.2},{"$f":"'SJP Pomocné hodnoty'!R100","v":1.1000000000000001},{"$f":"IF(#REF!=\"A1\",#REF!,IF(#REF!=\"A2\",#REF!,0))","v":{"$error":"#REF!"}},{"$error":"#REF!"},{"$error":"#REF!"},0]
[null,null,null,"obnova sys. osvětlení za LED technol. včetně real. nových rozvodů a svítidel",null,"m2",{"$f":"'SJP Pomocné hodnoty'!F101","v":2000},{"$f":"'SJP Pomocné hodnoty'!G101","v":0.4},{"$f":"'SJP Pomocné hodnoty'!R101","v":1.1000000000000001},{"$f":"IF(#REF!=\"A1\",#REF!,IF(#REF!=\"A2\",#REF!,0))","v":{"$error":"#REF!"}},{"$error":"#REF!"},{"$error":"#REF!"},0]
[null,null,null,"realizace dynamického či biodynamického osvětlení",null,"m2",{"$f":"'SJP Pomocné hodnoty'!F102","v":2000},{"$f":"'SJP Pomocné hodnoty'!G102","v":0.6},{"$f":"'SJP Pomocné hodnoty'!R102","v":1.1000000000000001},{"$f":"IF(#REF!=\"A1\",#REF!,IF(#REF!=\"A2\",#REF!,0))","v":{"$error":"#REF!"}},{"$error":"#REF!"},{"$error":"#REF!"},0]
[null,null,"Ostatní prostory (s intenzitou osvětlení vyšší než 200 lux/m2)","výměna zdrojů a svítidel za nová s LED technologií",null,"m2",{"$f":"'SJP Pomocné hodnoty'!F103","v":2000},{"$f":"'SJP Pomocné hodnoty'!G103","v":0.3},{"$f":"'SJP Pomocné hodnoty'!R103","v":1.1000000000000001},{"$f":"IF(#REF!=\"A1\",#REF!,IF(#REF!=\"A2\",#REF!,0))","v":{"$error":"#REF!"}},{"$error":"#REF!"},{"$error":"#REF!"},0]
[null,null,null,"obnova sys. osvětlení za LED technol. včetně real. nových rozvodů a svítidel",null,"m2",{"$f":"'SJP Pomocné hodnoty'!F104","v":2000},{"$f":"'SJP Pomocné hodnoty'!G104","v":0.7},{"$f":"'SJP Pomocné hodnoty'!R104","v":1.1000000000000001},{"$f":"IF(#REF!=\"A1\",#REF!,IF(#REF!=\"A2\",#REF!,0))","v":{"$error":"#REF!"}},{"$error":"#REF!"},{"$error":"#REF!"},0]
[null,null,null,"realizace dynamického či biodynamického osvětlení",null,"m2",{"$f":"'SJP Pomocné hodnoty'!F105","v":2000},{"$f":"'SJP Pomocné hodnoty'!G105","v":1},{"$f":"'SJP Pomocné hodnoty'!R105","v":1.1000000000000001},{"$f":"IF(#REF!=\"A1\",#REF!,IF(#REF!=\"A2\",#REF!,0))","v":{"$error":"#REF!"}},{"$error":"#REF!"},{"$error":"#REF!"},0]
[null,"Podlahová plocha místností v nichž je řešena prostorová akustika (např. přednáškové sály, učebny, apod.)",null,null,null,"m2",{"$f":"'SJP Pomocné hodnoty'!F106","v":1000},{"$f":"'SJP Pomocné hodnoty'!G106","v":1},{"$f":"'SJP Pomocné hodnoty'!R106","v":1.1000000000000001},{"$f":"IF(#REF!=\"A1\",#REF!,IF(#REF!=\"A2\",#REF!,0))","v":{"$error":"#REF!"}},{"$error":"#REF!"},{"$error":"#REF!"},0]
[]
[]
[null,"Způsobilé výdaje za opatření 1.1.3",null,null,{"$f":"IF(A17<>TRUE,0,IF($C$12<>\"ANO\",SUM(M43:M52),SUM(M43:M52)*(1+$C$13)))","v":0}]
[false,"1.1.4 Zvýšení adaptability veřejných budov na změnu klimatu"]
[null,null,null,null,"aktuální ŽoP","jednotka","jednotkový náklad bez DPH","k1","k2","k3","jednotková dotace za opatření bez DPH","celková dotace za opatření bez DPH","Způsobilé přímé realizační výdaje"]
[null,"Kapacita akum. nádrže instalovaného syst.  využití dešťové vody k závlaze - systém bez technolog. úpravy vody",null,null,null,"m3",{"$f":"'SJP Pomocné hodnoty'!F87","v":8000},{"$f":"'SJP Pomocné hodnoty'!G87","v":1},{"$f":"'SJP Pomocné hodnoty'!R87","v":1.1000000000000001},{"$f":"IF(#REF!=\"A1\",#REF!,IF(#REF!=\"A2\",#REF!,0))","v":{"$error":"#REF!"}},{"$f":"G58*H58*I58*J58","v":{"$error":"#REF!"}},{"$f":"E58*K58","v":{"$error":"#REF!"}},{"$f":"E58*G58*H58*I58","v":0}]
[null,"Kapacita akum. nádrže instalovaného syst.využití dešťové vody k závlaze  - technologie na odbourávání organických nečistot (biolog. filtrace) a hygienické zabezpečení na výstupu, určeno pro závlahu rozstřikem",null,null,null,"m3",{"$f":"'SJP Pomocné hodnoty'!F88","v":25000},{"$f":"'SJP Pomocné hodnoty'!G88","v":1},{"$f":"'SJP Pomocné hodnoty'!R88","v":1.1000000000000001},{"$f":"IF(#REF!=\"A1\",#REF!,IF(#REF!=\"A2\",#REF!,0))","v":{"$error":"#REF!"}},{"$f":"G59*H59*I59*J59","v":{"$error":"#REF!"}},{"$error":"#REF!"},0]
[null,"Kapacita akumulační nádrže instalovaného systému využití dešťové vody ke splachování toalet",null,null,null,"m3",{"$f":"'SJP Pomocné hodnoty'!F89","v":40000},{"$f":"'SJP Pomocné hodnoty'!G89","v":1},{"$f":"'SJP Pomocné hodnoty'!R89","v":1.1000000000000001},{"$f":"IF(#REF!=\"A1\",#REF!,IF(#REF!=\"A2\",#REF!,0))","v":{"$error":"#REF!"}},{"$error":"#REF!"},{"$error":"#REF!"},0]
[null,"Kapacita retenčího zařízení instalovaného systému vsakování a výparu dešťové vody ze zpevněných ploch budovy",null,null,null,"m3",{"$f":"'SJP Pomocné hodnoty'!F90","v":5000},{"$f":"'SJP Pomocné hodnoty'!G90","v":1},{"$f":"'SJP Pomocné hodnoty'!R90","v":1.1000000000000001},{"$f":"IF(#REF!=\"A1\",#REF!,IF(#REF!=\"A2\",#REF!,0))","v":{"$error":"#REF!"}},{"$error":"#REF!"},{"$error":"#REF!"},0]
[null,"Přečištění a využití lehké šedé vody z budovy (mimo ČOV)","nebo","kapacita zařízení pro úpravu vody",null,"m3 šedé vody/den",{"$f":"'SJP Pomocné hodnoty'!F91","v":150000},{"$f":"'SJP Pomocné hodnoty'!G91","v":1},{"$f":"'SJP Pomocné hodnoty'!R91","v":1.1000000000000001},{"$f":"IF(#REF!=\"A1\",#REF!,IF(#REF!=\"A2\",#REF!,0))","v":{"$error":"#REF!"}},{"$error":"#REF!"},{"$error":"#REF!"},0]
[null,null,null,"úspora pitné vody",null,"m3/rok",{"$f":"'SJP Pomocné hodnoty'!F92","v":2000},{"$f":"'SJP Pomocné hodnoty'!G92","v":1},{"$f":"'SJP Pomocné hodnoty'!R92","v":1.1000000000000001},{"$f":"IF(#REF!=\"A1\",#REF!,IF(#REF!=\"A2\",#REF!,0))","v":{"$error":"#REF!"}},{"$error":"#REF!"},{"$error":"#REF!"},0]
[null,"Vegetační střechy ",null,null,null,"m2"]
[]
[]
[null,"Způsobilé výdaje za opatření 1.1.4",null,null,{"$f":"IF(A17<>TRUE,0,IF($C$12<>\"ANO\",SUM(M58:M63),SUM(M58:M63)*(1+$C$13)))","v":0}]
[false,"1.2.1 Výstavba a rekonstrukce obnovitelných zdrojů energie pro veřejné budovy"]
[null,null,null,null,"aktuální ŽoP","jednotka","jednotkový náklad bez DPH","k1","k2","k3","jednotková dotace za opatření bez DPH","celková dotace za opatření bez DPH","Způsobilé přímé realizační výdaje","GBER 41 OZE","GBER 41 MIMO OZE"]
[null,"Celkový výkon nově instalovaných tepelných čerpadel vzduch-voda (při teplotní charakteristice A2/W35)",null,null,null,"kW",{"$f":"'SJP Pomocné hodnoty'!F45","v":34600},{"$f":"IF($E$70>250,'SJP Pomocné hodnoty'!G45,IF($E$70>100,'SJP Pomocné hodnoty'!G44,IF($E$70>50,'SJP Pomocné hodnoty'!G43,'SJP Pomocné hodnoty'!G42)))","v":1.2},{"$f":"'SJP Pomocné hodnoty'!R45","v":1.1000000000000001},{"$f":"IF(#REF!=\"A1\",#REF!,IF(#REF!=\"A2\",#REF!,0))","v":{"$error":"#REF!"}},{"$f":"G70*H70*I70*J70","v":{"$error":"#REF!"}},{"$f":"E70*K70","v":{"$error":"#REF!"}},{"$f":"E70*G70*H70*I70","v":0},{"$f":"M70","v":0}]
[null,"Celkový výkon nově instalovaných tepelných čerpadel země-voda (při teplotní charakteristice S0/W35) a voda/voda (při teplotní charakteristice W10/W35)",null,null,null,"kW",{"$f":"'SJP Pomocné hodnoty'!F46","v":52900},{"$f":"IF($E$71>250,'SJP Pomocné hodnoty'!G49,IF($E$71>100,'SJP Pomocné hodnoty'!G48,IF($E$71>50,'SJP Pomocné hodnoty'!G47,'SJP Pomocné hodnoty'!G46)))","v":1.2},{"$f":"'SJP Pomocné hodnoty'!R46","v":1.1000000000000001},{"$f":"IF(#REF!=\"A1\",#REF!,IF(#REF!=\"A2\",#REF!,0))","v":{"$error":"#REF!"}},{"$f":"G71*H71*I71*J71","v":{"$error":"#REF!"}},{"$error":"#REF!"},0,{"$f":"M71","v":0}]
[null,"Celkový výkon nově instalovaných plynových tepelných čerpadel",null,null,null,"kW",{"$f":"'SJP Pomocné hodnoty'!F50","v":28500},{"$f":"IF($E$72>250,'SJP Pomocné hodnoty'!G53,IF($E$72>100,'SJP Pomocné hodnoty'!G52,IF($E$72>50,'SJP Pomocné hodnoty'!G51,'SJP Pomocné hodnoty'!G50)))","v":1.2},{"$f":"'SJP Pomocné hodnoty'!R50","v":1.1000000000000001},{"$f":"IF(#REF!=\"A1\",#REF!,IF(#REF!=\"A2\",#REF!,0))","v":{"$error":"#REF!"}},{"$error":"#REF!"},{"$error":"#REF!"},0,null,{"$f":"M72","v":0}]
[null,"Celkový výkon nově instalovaných zdrojů na biomasu",null,null,null,"kW",{"$f":"'SJP Pomocné hodnoty'!F54","v":10800},{"$f":"IF($E$73>500,'SJP Pomocné hodnoty'!G59,IF($E$73>250,'SJP Pomocné hodnoty'!G58,IF($E$73>100,'SJP Pomocné hodnoty'!G57,IF($E$73>50,'SJP Pomocné hodnoty'!G56,IF($E$73>25,'SJP Pomocné hodnoty'!G55,'SJP Pomocné hodnoty'!G54)))))","v":1.4},{"$f":"'SJP Pomocné hodnoty'!R54","v":1.1000000000000001},{"$f":"IF(#REF!=\"A1\",#REF!,IF(#REF!=\"A2\",#REF!,0))","v":{"$error":"#REF!"}},{"$error":"#REF!"},{"$error":"#REF!"},0,0]
[null,"Celkový výkon nově instalovaných systémů využití odpadního tepla",null,null,null,"kW",{"$f":"'SJP Pomocné hodnoty'!F60","v":31600},{"$f":"IF($E$74>500,'SJP Pomocné hodnoty'!G65,IF($E$74>250,'SJP Pomocné hodnoty'!G64,IF($E$74>100,'SJP Pomocné hodnoty'!G63,IF($E$74>50,'SJP Pomocné hodnoty'!G62,IF($E$74>25,'SJP Pomocné hodnoty'!G61,'SJP Pomocné hodnoty'!G60)))))","v":1.4},{"$f":"'SJP Pomocné hodnoty'!R60","v":1.1000000000000001},{"$f":"IF(#REF!=\"A1\",#REF!,IF(#REF!=\"A2\",#REF!,0))","v":{"$error":"#REF!"}},{"$error":"#REF!"},{"$error":"#REF!"},0,0]
[null,"Realizace nové otopné teplovodní soustavy",null,null,null,"kW (tep. ztráta)",{"$f":"'SJP Pomocné hodnoty'!F66","v":11500},{"$f":"'SJP Pomocné hodnoty'!G66","v":1},{"$f":"'SJP Pomocné hodnoty'!R66","v":1.1000000000000001},{"$f":"IF(#REF!=\"A1\",#REF!,IF(#REF!=\"A2\",#REF!,0))","v":{"$error":"#REF!"}},{"$error":"#REF!"},{"$f":"E75*K75","v":{"$error":"#REF!"}},0,null,{"$f":"M75","v":0}]
[null,"Celkový výkon nově instalovaných solárně-termických kolektorů","systém s plochými kolektory",null,null,"kW",{"$f":"'SJP Pomocné hodnoty'!F67","v":36600},{"$f":"'SJP Pomocné hodnoty'!G67","v":1},{"$f":"'SJP Pomocné hodnoty'!R67","v":1.1000000000000001},{"$f":"IF(#REF!=\"A1\",#REF!,IF(#REF!=\"A2\",#REF!,0))","v":{"$error":"#REF!"}},{"$error":"#REF!"},{"$error":"#REF!"},0,0]
[null,null,"systém s vakuovými kolektory",null,null,"kW",{"$f":"'SJP Pomocné hodnoty'!F68","v":36600},{"$f":"'SJP Pomocné hodnoty'!G68","v":1.7},{"$f":"'SJP Pomocné hodnoty'!R68","v":1.1000000000000001},{"$f":"IF(#REF!=\"A1\",#REF!,IF(#REF!=\"A2\",#REF!,0))","v":{"$error":"#REF!"}},{"$error":"#REF!"},{"$error":"#REF!"},0,0]
[null,"Celkový výkon nově instalovaných jednotek pro kombinovanou výrobu elektřiny a tepla nebo chladu",null,null,null,"kWe",{"$f":"'SJP Pomocné hodnoty'!F70","v":68100},{"$f":"IF($E$78>100,'SJP Pomocné hodnoty'!G71,IF($E$78>30,'SJP Pomocné hodnoty'!G70,'SJP Pomocné hodnoty'!G69))","v":1.2},{"$f":"'SJP Pomocné hodnoty'!R70","v":1.1000000000000001},{"$f":"IF(#REF!=\"A1\",#REF!,IF(#REF!=\"A2\",#REF!,0))","v":{"$error":"#REF!"}},{"$error":"#REF!"},{"$error":"#REF!"},0,0]
[null,"Celkový špičkový výkon nově instalovaných fotovoltaických systémů",null,null,null,"KWp",{"$f":"'SJP Pomocné hodnoty'!F72","v":35000},{"$f":"IF($E$79>250,'SJP Pomocné hodnoty'!G75,IF($E$79>100,'SJP Pomocné hodnoty'!G74,IF($E$79>30,'SJP Pomocné hodnoty'!G73,'SJP Pomocné hodnoty'!G72)))","v":1},{"$f":"'SJP Pomocné hodnoty'!R72","v":1.1000000000000001},{"$f":"IF(#REF!=\"A1\",#REF!,IF(#REF!=\"A2\",#REF!,0))","v":{"$error":"#REF!"}},{"$error":"#REF!"},{"$error":"#REF!"},0,0]
[null,"Celková kapacita nově instalovaných bateriových systémů pro akumulaci energie z FVE systému",null,null,null,"kWh",{"$f":"'SJP Pomocné hodnoty'!F76","v":26000},{"$f":"IF($E$79>100,'SJP Pomocné hodnoty'!G78,IF($E$79>30,'SJP Pomocné hodnoty'!G77,'SJP Pomocné hodnoty'!G76))","v":1},{"$f":"'SJP Pomocné hodnoty'!R76","v":1.1000000000000001},{"$f":"IF(#REF!=\"A1\",#REF!,IF(#REF!=\"A2\",#REF!,0))","v":{"$error":"#REF!"}},{"$error":"#REF!"},{"$f":"E80*K80","v":{"$error":"#REF!"}},0,null,{"$f":"M80","v":0}]
[null,"Technické propojení FVE s tepelným čerpadlem pro TV",null,false,null,"ks",{"$f":"'SJP Pomocné hodnoty'!F79","v":60000},{"$f":"'SJP Pomocné hodnoty'!G79","v":1},{"$f":"'SJP Pomocné hodnoty'!R79","v":1.1000000000000001},{"$f":"IF(#REF!=\"A1\",#REF!,IF(#REF!=\"A2\",#REF!,0))","v":{"$error":"#REF!"}},{"$f":"IF(D81<>TRUE,0,G81*H81*I81*J81)","v":0},{"$f":"E81*K81","v":0},0,0]
[null,null,null,null,null,null,null,null,null,null,null,null,null,{"$f":"SUM(N70:N81)","v":0},{"$f":"SUM(O70:O81)","v":0}]
[null,null,null,false,null,null,null,null,null,null,null,null,null,{"$f":"IF(#REF!<>\"ANO\",N82,N82*(1+#REF!))","v":{"$error":"#REF!"}},{"$f":"IF(#REF!<>\"ANO\",O82,O82*(1+#REF!))","v":{"$error":"#REF!"}}]
[null,null,null,false]
[]
[null,{"$f":"\"Způsobilé výdaje za opatření 1.2.1\"","v":"Způsobilé výdaje za opatření 1.2.1"},null," ",{"$f":"IF(A68<>TRUE,0,IF($C$12<>\"ANO\",SUM(M70:M81),SUM(M70:M81)*(1+$C$13)))","v":0},null,null,null,null,null,null,null,"Podpora dle GBER 41",{"$f":"N83*0.45","v":{"$error":"#REF!"}},{"$f":"O83*0.3","v":{"$error":"#REF!"}}]
[]
[null,null,null,{"$f":"IF($C$15<(IF($C$13<>\"ANO\",IF(A17<>TRUE,0,SUM(M19:M35))+IF(A41<>TRUE,0,SUM(M43:M52))+IF(A56<>TRUE,0,SUM(M58:M63))+IF(A68<>TRUE,0,SUM(M70:M81)),(IF(A17<>TRUE,0,SUM(M19:M35))+IF(A41<>TRUE,0,SUM(M43:M52))+IF(A56<>TRUE,0,SUM(M58:M63))+IF(A68<>TRUE,0,SUM(M70:M81)))*(1+$C$16))-0.5),\"POZOR, výše CZPRV vypočtená na základě zadaných parametrů je vyšší, než celková výše CZPRV z právního aktu.\",\"\")","v":""},null,null,null,null,null,null,null,null,null,null,null,{"$f":"IF(D89=0,\"\",\"Pokyny pro vyplnění hodnot do ŽoP v ISKP21+\")","v":""}]
["Celkové způsobilé přímé realizační výdaje („CZPRV“)",null,null,{"$f":"MIN($C$15,IF($C$12<>\"ANO\",IF(A17<>TRUE,0,SUM(M19:M35))+IF(A41<>TRUE,0,SUM(M43:M52))+IF(A56<>TRUE,0,SUM(M58:M63))+IF(A68<>TRUE,0,SUM(M70:M81)),(IF(A17<>TRUE,0,SUM(M19:M35))+IF(A41<>TRUE,0,SUM(M43:M52))+IF(A56<>TRUE,0,SUM(M58:M63))+IF(A68<>TRUE,0,SUM(M70:M81)))*(IF(AND($E$11=\"ANO\",$E$10=\"ANO\"),0,1)+IF($E$10=\"ANO\",IF(AND($E$11=\"ANO\",$E$10=\"ANO\"),(C13*(1-E12)),0),$C$13))))","v":0},null,null,null,null,null,null,null,null,null,null,null,{"$f":"IF(D89=0,\"\",IF(E13=\"NE\",\"Typ dokladu:  Doklady jednotek a jedn. částek, řádek rozpočtu, řádek rozpočtu: 1.1.1.1\",\"Typ dokladu: Doklady jednotek a jedn. částek, řádek rozpočtu: 1.1.3.3\"))","v":""}]
[]
["Celkové způsobilé nepřímé výdaje",null,null,{"$f":"ROUNDDOWN(IF(C15=0,0,(IF($C$15>10000000,0.035,IF($C$15>3000000,0.05,0.07))*$D$89)),2)","v":0}]
[null,null,null,{"$f":"IF(D93>D91,IF(C9=1,\"POZOR, jsou vykázány ZV na nepřímé výdaje, nad limit dle CZPRV odpovídajícím vykazovaným parametrům v této ŽoP!\",CONCATENATE(\"POZOR, jsou vykázány ZV na nepřímé výdaje, nad limit dle CZPRV odpovídajícím vykazovaným parametrům v této ŽoP.\",\" U následných ŽoP lze vykázat ZV na nepřímé výdaje nad tento limit a to do výše odpovídající CZPRV vykázaným parametrům v součtu za předešlé a aktuální ŽoP.\",\"\")),\"\")","v":""}]
["Způsobilé nepřímé výdaje doložené fakturací",null,null,null,null,null,null,null,null,null,null,null,null,null,null,{"$f":"IF(D89=0,\"\",IF(E13=\"NE\",\"\",\"Typ dokladu: SD-1 (obecný doklad), řádek rozpočtu: 1.1.3.3\"))","v":""}]
[]
["Celkové způsobilé výdaje v ŽoP",null,null,{"$f":"IF(E13<>\"ANO\",D91+D89,D89+D93)","v":0}]
[]
["Celková výše podpory v ŽoP",null,null,{"$f":"(C14)*(D89+D91)","v":0}]
[]
["Stanovisko technického dozoru k vykázaným parametrům v ŽoP:"]
["1.","Vykazovaná opatření byla realizována v souladu s návrhem Energetického posudku, který byl předložen v žádosti o dotaci? ",null,"Vyberte odpověď"]
["2.","Použité materiály / prvky / technologie (dle předložených technických listů / měření) plní parametry navržených opatření?",null,"Vyberte odpověď"]
["3.","V případě izolantů / výplní otvorů s požadavkem na certifikát EPD byl předložen doklad, který potvrzuje jeho splnění?",null,"Vyberte odpověď"]
["4.","Opatření kvůli výskytu synantropních druhů / proti střetu s prolétajícím ptactvem byla provedena dle návrhu?",null,"Vyberte odpověď"]
["5.","Došlo v průběhu realizace ke změně projektu oproti návrhu Energetického posudku?",null,"Vyberte odpověď"]
["6.","Pokud ke změně došlo, měla vliv na parametry projektu nebo rozsah navržených opatření?",null,"Vyberte odpověď"]
["7.","Popis změny a její rozsah"]
[]
[]
[]
[]
[]
["Poznámky:"]
[]
[]
[]
[null,null,null,null,null,"Invented by: Polak & Vrbický"]
[null,null,null,null,null,"Created by: Urban"]

{"sheet":"Pomocné hodnoty","index":1,"n_rows":7,"n_cols":1,"rows_kept":7,"cut":false,"hidden":true,"merged":[]}
["Vyberte odpověď"]
["ANO"]
["NE"]
["IRELEVANTNÍ"]
[0.12]
[0.15]
[0.21]

{"sheet":"SJP Pomocné hodnoty","index":2,"n_rows":117,"n_cols":21,"rows_kept":117,"cut":false,"hidden":true,"merged":[[96,0,98,0],[99,0,104,0],[99,1,101,1],[102,1,104,1],[17,0,18,0],[19,0,20,0],[23,0,24,0],[25,0,28,0],[86,0,87,0],[90,0,91,0]]}
["A",null,null,null,null,null,"Číselník pro obecné parametry"]
["Úspora primární energie z neobnovitelných zdrojů",null,0.3,0.4,null,null,1,"Nepam",null,{"$f":"IF('Plnění parametrů v ŽoP'!$C$7=\"NE\",IF('Plnění parametrů v ŽoP'!$C$8=\"NE\",IF(AND('Plnění parametrů v ŽoP'!D46=FALSE,'Plnění parametrů v ŽoP'!D92=FALSE,'Plnění parametrů v ŽoP'!D119=FALSE),1,3),IF(AND('Plnění parametrů v ŽoP'!D46=FALSE,'Plnění parametrů v ŽoP'!D92=FALSE,'Plnění parametrů v ŽoP'!D119=FALSE),2,4)),IF('Plnění parametrů v ŽoP'!$C$8=\"NE\",IF(AND('Plnění parametrů v ŽoP'!D46=FALSE,VD92=FALSE,'Plnění parametrů v ŽoP'!D119=FALSE),5,7),IF(AND('Plnění parametrů v ŽoP'!D46=FALSE,'Plnění parametrů v ŽoP'!D92=FALSE,'Plnění parametrů v ŽoP'!D119=FALSE),6,8)))","v":8}]
["Dosažená hodnota primární energie z neobnovitelných zdrojů dle PENB pro stav po realizaci navržených opatření",null,0.85,0.7,null,null,2,"Nepam škola"]
["Průměrný součinitel prostupu tepla obálky budovy",null,0.95,0.8,null,null,3,"Nepam EPC"]
["Součinitel prostupu tepla pro měněné stavební prvky vyjma oken, na něž se vztahuje podpora",null,null,null,null,null,4,"Nepam škola EPC"]
["Součinitel prostupu tepla oken, na něž se vztahuje podpora",null,0.15,null,null,null,5,"Pam"]
["Nejvyšší denní teplota vzduchu v místnosti v letním období ",null,0.21,null,null,null,6,"Pam škola "]
["Koncept větrání",null,null,null,null,null,7,"Pam EPC"]
[null,null,"ANO",null,null,null,8,"Pam škola EPC"]
[null,null,"NE"]
[{"$f":"IF('[1]Plnění parametrů v ŽoP'!$A$17=TRUE,1,0)+IF('[1]Plnění parametrů v ŽoP'!$A$41=TRUE,1,0)+IF('[1]Plnění parametrů v ŽoP'!$A$56=TRUE,1,0)+IF('[1]Plnění parametrů v ŽoP'!$A$68=TRUE,1,0)","v":0},"počet specifických cílů dotčených projektem"]
[null,"Specifický cíl 1.2 (po zatržení je nutno vybrat jedno z opatření v rozbalovacím menu u této buňky vpravo)"]
[null,"1.2.1 Výstavba a rekonstrukce obnovitelných zdrojů energie pro veřejné budovy"]
[null,"1.2.2 Výstavba a rekonstrukce obnovitelných zdrojů energie pro zajištění dodávek systémové energie ve veřejném sektoru"]
[]
[null,null,null,null,null,"jednotkové náklady bez DPH","k1",null,"% podpory pro oblast A a C",null,null,40,"% podpory pro oblast B",null,null,60,null,"k2","k3 A1","k3 A2","k4"]
["Plocha zateplovaných obvodových stěn",null,null,null,null,4200,1,0.05,"+0,05 – v případě certifikátu EPD pro tepelný izolant (environmentální prohlášení typu III)",null,null,null,null,null,null,null,null,{"$f":"'[1]Plnění parametrů v ŽoP'!C11","v":1.1000000000000001},0.5,{"$f":"S17+0.15","v":0.65},1.1000000000000001]
["Plocha měněných otvorových výplní (oken a dveří)","ne LOP",null,null,null,8900,1,0.05,"+0,05 – v případě certifikátu EPD pro tepelný izolant (environmentální prohlášení typu III)",null,null,null,null,null,null,null,null,{"$f":"$R$17","v":1.1000000000000001},0.5,{"$f":"S18+0.15","v":0.65},{"$f":"$U$17","v":1.1000000000000001}]
[null,"LOP",null,null,null,8900,1.3,0.05,"+0,05 – v případě certifikátu EPD pro tepelný izolant (environmentální prohlášení typu III)",null,null,null,null,null,null,null,null,{"$f":"$R$17","v":1.1000000000000001},0.5,0.65,{"$f":"$U$17","v":1.1000000000000001}]
["Plocha zateplovaných plochých či šikmých střech","nová skladba včetně paro a hydro izolace",null,null,null,3200,1,0.05,"+0,05 – v případě certifikátu EPD pro tepelný izolant (environmentální prohlášení typu III)",null,null,null,null,null,null,null,null,1.1000000000000001,0.5,0.65,1.1000000000000001]
[null,"pouze tepelná vrstva bez paro a hydroizolace",null,null,null,3200,0.2,0.05,"+0,05 – v případě certifikátu EPD pro tepelný izolant (environmentální prohlášení typu III)",null,null,null,null,null,null,null,null,1.1000000000000001,0.5,0.65,1.1000000000000001]
["Plocha zateplovaných podlah na zemině",null,null,null,null,4000,1,0.05,"+0,05 – v případě certifikátu EPD pro tepelný izolant (environmentální prohlášení typu III)",null,null,null,null,null,null,null,null,1.1000000000000001,0.5,0.65,1.1000000000000001]
["Plocha zateplovaných konstrukcí k nevytápěným prostorům",null,null,null,null,1200,1,0.05,"+0,05 – v případě certifikátu EPD pro tepelný izolant (environmentální prohlášení typu III)",null,null,null,null,null,null,null,null,1.1000000000000001,0.5,0.65,1.1000000000000001]
["Celkový výkon nově instalovaných systémů nuceného větrání  - výukové prostory vzdělávacích budov","výkon na jednotku do 1500 m3",null,null,null,9800,0.6,null,null,null,null,null,null,null,null,null,null,1.1000000000000001,0.7,{"$f":"S24+0","v":0.7},1.1000000000000001]
[null,"výkon na jednotku nad 1500 m3",null,null,null,9800,1,null,null,null,null,null,null,null,null,null,null,1.1000000000000001,0.7,{"$f":"S25+0","v":0.7},1.1000000000000001]
["Celkový výkon nově instalovaných systémů nuceného větrání s rekuperací - ostatní","výkon na jednotku do 1500 m3",null,null,null,390,0.6,null,null,null,null,null,null,null,null,null,null,1.1000000000000001,0.7,0.7,1.1000000000000001]
[null,"výkon na jednotku nad 1500 m3 - regulace průtoku ON/OFF",null,null,null,390,0.5,null,null,null,null,null,null,null,null,null,null,1.1000000000000001,0.7,0.7,1.1000000000000001]
[null,"výkon na jednotku nad 1500 m3 - regulace průtoku dle času, % výkonu jednotky a ostatní neuvedené",null,null,null,390,0.7,null,null,null,null,null,null,null,null,null,null,1.1000000000000001,0.7,0.7,1.1000000000000001]
[null,"výkon na jednotku nad 1500 m3 - plynulá regulace, např. CO2",null,null,null,390,1,null,null,null,null,null,null,null,null,null,null,1.1000000000000001,0.7,0.7,1.1000000000000001]
["Další opatření mající prokazatelně vliv na snížení spotřeby primární energie z neobnovitlrených zdrojů","do 10 MWh/rok",null,null,null,36100,1.1000000000000001,"– do 10 MWh/rok",null,null,null,null,null,null,null,null,null,1.1000000000000001,0.5,{"$f":"S30+0.15","v":0.65},1.1000000000000001]
[null,"nad 10 MWh/rok do 30 MWh/rok",null,null,null,36100,0.9,"– nad 10 do 30 MWh/rok",null,null,null,null,null,null,null,null,null,1.1000000000000001,0.5,{"$f":"S31+0.15","v":0.65},1.1000000000000001]
[null,"nad 30 MWh/rok do 100 MWh/rok",null,null,null,36100,0.7,"– nad 30 do 100 MWh/rok",null,null,null,null,null,null,null,null,null,1.1000000000000001,0.5,0.65,1.1000000000000001]
[null,"nad 100 MWh/rok do 300 MWh/rok",null,null,null,36100,0.5,"– nad 100 do 300 MWh/rok",null,null,null,null,null,null,null,null,null,1.1000000000000001,0.5,0.65,1.1000000000000001]
[null,"nad 300 MWh/rok",null,null,null,36100,0.2,"– nad 300 MWh/rok",null,null,null,null,null,null,null,null,null,1.1000000000000001,0.5,0.65,1.1000000000000001]
[]
["Celkový výkon nově instalovaných kondenzačních kotlů na zemní plyn",null,null,null,null,8300,1.4,"– do 25 kW",null,null,null,null,null,null,null,null,null,1.1000000000000001,{"$f":"$S$17","v":0.5},0.65,1.1000000000000001]
[null,null,null,null,null,8300,1.2,"– nad 25 kW do 50 kW",null,null,null,null,null,null,null,null,null,1.1000000000000001,0.5,0.65,1.1000000000000001]
[null,null,null,null,null,8300,1.1000000000000001,"– nad 50 kW do 100 kW",null,null,null,null,null,null,null,null,null,1.1000000000000001,0.5,0.65,1.1000000000000001]
[null,null,null,null,null,8300,0.9,"– nad 100 kW do 250 kW",null,null,null,null,null,null,null,null,null,1.1000000000000001,0.5,0.65,1.1000000000000001]
[null,null,null,null,null,8300,0.75," – nad 250 kW do 500 kW",null,null,null,null,null,null,null,null,null,1.1000000000000001,0.5,0.65,1.1000000000000001]
[null,null,null,null,null,8300,0.6,"– nad 500 kW",null,null,null,null,null,null,null,null,null,1.1000000000000001,0.5,0.65,1.1000000000000001]
["Celkový výkon nově instalovaných tepelných čerpadel vzduch-voda",null,null,null,null,34600,1.2,"– do 50 kW",null,null,null,null,null,null,null,null,null,1.1000000000000001,0.6,0.75,1.1000000000000001]
[null,null,null,null,null,34600,1.1000000000000001,"– nad 50 kW do 100 kW",null,null,null,null,null,null,null,null,null,1.1000000000000001,0.6,0.75,1.1000000000000001]
[null,null,null,null,null,34600,0.9,"– nad 100 kW do 250 kW",null,null,null,null,null,null,null,null,null,1.1000000000000001,0.6,0.75,1.1000000000000001]
[null,null,null,null,null,34600,0.8,"– nad 250 kW",null,null,null,null,null,null,null,null,null,1.1000000000000001,0.6,0.75,1.1000000000000001]
["Celkový výkon nově instalovaných tepelných čerpadel země-voda a voda/voda",null,null,null,null,52900,1.2,"– do 50 kW",null,null,null,null,null,null,null,null,null,1.1000000000000001,0.6,0.75,1.1000000000000001]
[null,null,null,null,null,52900,1.1000000000000001,"– nad 50 kW do 100 kW",null,null,null,null,null,null,null,null,null,1.1000000000000001,0.6,0.75,1.1000000000000001]
[null,null,null,null,null,52900,0.9,"– nad 100 kW do 250 kW",null,null,null,null,null,null,null,null,null,1.1000000000000001,0.6,0.75,1.1000000000000001]
[null,null,null,null,null,52900,0.8,"– nad 250 kW",null,null,null,null,null,null,null,null,null,1.1000000000000001,0.6,0.75,1.1000000000000001]
["Celkový výkon nově instalovaných plynových tepelných čerpadel",null,null,null,null,28500,1.2,"– do 50 kW",null,null,null,null,null,null,null,null,null,1.1000000000000001,0.6,0.75,1.1000000000000001]
[null,null,null,null,null,28500,1.1000000000000001,"– nad 50 kW do 100 kW",null,null,null,null,null,null,null,null,null,1.1000000000000001,0.6,0.75,1.1000000000000001]
[null,null,null,null,null,28500,0.9,"– nad 100 kW do 250 kW",null,null,null,null,null,null,null,null,null,1.1000000000000001,0.6,0.75,1.1000000000000001]
[null,null,null,null,null,28500,0.8,"– nad 250 kW",null,null,null,null,null,null,null,null,null,1.1000000000000001,0.6,0.75,1.1000000000000001]
["Celkový výkon nově instalovaných zdrojů na biomasu",null,null,null,null,10800,1.4,"– do 25 kW",null,null,null,null,null,null,null,null,null,1.1000000000000001,0.6,0.75,1.1000000000000001]
[null,null,null,null,null,10800,1.2,"– nad 25 kW do 50 kW",null,null,null,null,null,null,null,null,null,1.1000000000000001,0.6,0.75,1.1000000000000001]
[null,null,null,null,null,10800,1.1000000000000001,"– nad 50 kW do 100 kW",null,null,null,null,null,null,null,null,null,1.1000000000000001,0.6,0.75,1.1000000000000001]
[null,null,null,null,null,10800,0.9,"– nad 100 kW do 250 kW",null,null,null,null,null,null,null,null,null,1.1000000000000001,0.6,0.75,1.1000000000000001]
[null,null,null,null,null,10800,0.75," – nad 250 kW do 500 kW",null,null,null,null,null,null,null,null,null,1.1000000000000001,0.6,0.75,1.1000000000000001]
[null,null,null,null,null,10800,0.6,"– nad 500 kW",null,null,null,null,null,null,null,null,null,1.1000000000000001,0.6,0.75,1.1000000000000001]
["Celkový výkon nově instalovaných systémů využití odpadního tepla",null,null,null,null,31600,1.4,"– do 25 kW",null,null,null,null,null,null,null,null,null,1.1000000000000001,0.6,0.75,1.1000000000000001]
[null,null,null,null,null,31600,1.2,"– nad 25 kW do 50 kW",null,null,null,null,null,null,null,null,null,1.1000000000000001,0.6,0.75,1.1000000000000001]
[null,null,null,null,null,31600,1.1000000000000001,"– nad 50 kW do 100 kW",null,null,null,null,null,null,null,null,null,1.1000000000000001,0.6,0.75,1.1000000000000001]
[null,null,null,null,null,31600,0.9,"– nad 100 kW do 250 kW",null,null,null,null,null,null,null,null,null,1.1000000000000001,0.6,0.75,1.1000000000000001]
[null,null,null,null,null,31600,0.75,"– nad 250 kW do 500 kW",null,null,null,null,null,null,null,null,null,1.1000000000000001,0.6,0.75,1.1000000000000001]
[null,null,null,null,null,31600,0.6,"– nad 500 kW",null,null,null,null,null,null,null,null,null,1.1000000000000001,0.6,0.75,1.1000000000000001]
["Realizace nové otopné teplovodní soustavy",null,null,null,null,11500,1,null,null,null,null,null,null,null,null,null,null,1.1000000000000001,0.5,0.65,1.1000000000000001]
["Celkový výkon nově instalovaných solárně-termických kolektorů",null,null,null,null,36600,1,"– pro systém s plochými kolektory",null,null,null,null,null,null,null,null,null,1.1000000000000001,0.6,0.75,1.1000000000000001]
[null,null,null,null,null,36600,1.7,"– pro systém s vakuovými kolektory",null,null,null,null,null,null,null,null,null,1.1000000000000001,0.6,0.75,1.1000000000000001]
["Celkový výkon nově instalovaných jednotek pro kombinovanou výrobu elektřiny a tepla nebo chladu","s výkonem do 30 kWe",null,null,null,68100,1.2,null,null,null,null,null,null,null,null,null,null,1.1000000000000001,0.5,0.65,1.1000000000000001]
[null,"s výkonem od 30 do 100 kWe",null,null,null,68100,1,null,null,null,null,null,null,null,null,null,null,1.1000000000000001,0.5,0.65,1.1000000000000001]
[null,"s výkonem nad 100 kWe",null,null,null,68100,0.7,null,null,null,null,null,null,null,null,null,null,1.1000000000000001,0.5,0.65,1.1000000000000001]
["Celkový špičkový výkon nově instalovaných fotovoltaických systémů",null,null,null,null,35000,1,"– pro FVE s výkonem do 30 kWp",null,null,null,null,null,null,null,null,null,1.1000000000000001,0.6,0.75,1.1000000000000001]
[null,null,null,null,null,35000,0.85,"– pro FVE s výkonem nad 30 do 100 kWp",null,null,null,null,null,null,null,null,null,1.1000000000000001,0.6,0.75,1.1000000000000001]
[null,null,null,null,null,35000,0.7,"– pro FVE s výkonem nad 100 do 250 kWp",null,null,null,null,null,null,null,null,null,1.1000000000000001,0.6,0.75,1.1000000000000001]
[null,null,null,null,null,35000,0.6," – pro FVE s výkonem nad 250 kWp",null,null,null,null,null,null,null,null,null,1.1000000000000001,0.6,0.75,1.1000000000000001]
["Celková kapacita nově instalovaných bateriových systémů pro akumulaci energie z FVE systému",null,null,null,null,26000,1,"– s kapacitou do 30 kWh",null,null,null,null,null,null,null,null,null,1.1000000000000001,0.6,0.75,1.1000000000000001]
[null,null,null,null,null,null,1,"– s kapacitou nad 30 do 100 kWh",null,null,null,null,null,null,null,null,null,1.1000000000000001,0.6,0.75,1.1000000000000001]
[null,null,null,null,null,null,1,"– s kapacitou nad 100 kWh",null,null,null,null,null,null,null,null,null,1.1000000000000001,0.6,0.75,1.1000000000000001]
["Technické propojení FVE s tepelným čerpadlem pro TV",null,null,null,null,60000,1,null,null,null,null,null,null,null,null,null,null,1.1000000000000001,0.6,0.75,1.1000000000000001]
["Počet nově instalovaných dobíjecích stanic pro vozidla na elektropohon",null,null,null,null,45000,1,null,null,null,null,null,null,null,null,null,null,1.1000000000000001,0.7,{"$f":"S80","v":0.7},1.1000000000000001]
["Počet realizovaných opatření k ochraně synantropních druhů ",null,null,null,null,3000,1,null,null,null,null,null,null,null,null,null,null,1.1000000000000001,0.7,{"$f":"S81","v":0.7},1.1000000000000001]
[]
[]
[]
[]
["B"]
["Kapacita akumulační nádrže instalovaného systému využití dešťové vody k závlaze"," systém bez technologické úpravy vody",null,null,null,8000,1,null,null,null,null,null,null,null,null,null,null,{"$f":"$R$17","v":1.1000000000000001},0.4,{"$f":"S87","v":0.4},1]
[null," technologie na odbourávání na odbourávání organických nečistot (biologická filtrace) a hygienické zabezpečení na výstupu, určeno pro závlahu rozstřikem",null,null,null,25000,1,null,null,null,null,null,null,null,null,null,null,1.1000000000000001,0.65,0.65,1]
["Kapacita akumulační nádrže instalovaného systému využití dešťové vody ke splachování toalet",null,null,null,null,40000,1,null,null,null,null,null,null,null,null,null,null,1.1000000000000001,0.65,0.65,1]
["Kapacita retenčího zařízení instalovaného systému vsakování a výparu dešťové vody ze zpevněných ploch budovy",null,null,null,null,5000,1,null,null,null,null,null,null,null,null,null,null,1.1000000000000001,0.4,0.4,1]
["Přečištění a využití lehké šedé vody z budovy (mimo ČOV)","kapacita zařízení pro úpravu vody",null,null,null,150000,1,null,null,null,null,null,null,null,null,null,null,1.1000000000000001,0.65,0.65,1]
[null,"úspora pitné vody",null,null,null,2000,1,null,null,null,null,null,null,null,null,null,null,1.1000000000000001,0.65,0.65,1]
["Vegetační střechy "]
[]
[]
["C"]
["Plocha výplní otvorů stíněných nově instalovanými vnějšími stínícími prvky orientovanými s odklonem větším než 25°od severu","ruční mechanické ovládání",null,null,null,3700,0.6,"0,6 - ruční mechanické ovládání",null,null,null,null,null,null,null,null,null,1.1000000000000001,0.4,{"$f":"S97","v":0.4},1]
[null,"ruční elektronické ovládání",null,null,null,3700,0.9,"0,9 - ruční elektronické ovládání",null,null,null,null,null,null,null,null,null,1.1000000000000001,0.5,{"$f":"S98","v":0.5},1]
[null,"automatické ovládání na základě meteostanice s rozdělením orientace vůči světovým stranám",null,null,null,3700,1,"1,0 - automatické ovládání na základě meteostanice s rozdělením orientace vůči světovým stranám",null,null,null,null,null,null,null,null,null,1.1000000000000001,0.65,0.65,1]
["Podlahová plocha místností v nichž je modernizováno osvětlení na LED (výměna zdroje či svítidla / renovace svítidel a rozvodů / dynamické a biodynamické ovládání)","Chodby, komunikace, sklady a prostory s nižší intenzitou osvětlení než 200 lux/m2","výměna zdrojů a svítidel za nová s LED technologií",null,null,2000,0.2,"0,2 - výměna zdrojů a svítidel za nová s LED technologií",null,null,null,null,null,null,null,null,null,1.1000000000000001,0.4,0.4,1]
[null,null,"obnova systému osvětlení za LED technologie včetně realizace nových rozvodů a svítidel",null,null,2000,0.4,"0,4 - obnova systému osvětlení za LED technologie včetně realizace nových rozvodů a svítidel",null,null,null,null,null,null,null,null,null,1.1000000000000001,0.5,0.5,1]
[null,null,"realizace dynamického či biodynamického osvětlení",null,null,2000,0.6,"0,6 - realizace dynamického či biodynamického osvětlení",null,null,null,null,null,null,null,null,null,1.1000000000000001,0.65,0.65,1]
[null,"Ostatní prostory (s intenzitou osvětlení vyšší než 200 lux/m2)","výměna zdrojů a svítidel za nová s LED technologií",null,null,2000,0.3,"0,3 - výměna zdrojů a svítidel za nová s LED technologií",null,null,null,null,null,null,null,null,null,1.1000000000000001,0.4,0.4,1]
[null,null,"obnova systému osvětlení za LED technologie včetně realizace nových rozvodů a svítidel",null,null,2000,0.7,"0,7 - obnova systému osvětlení za LED technologie včetně realizace nových rozvodů a svítidel",null,null,null,null,null,null,null,null,null,1.1000000000000001,0.5,0.5,1]
[null,null,"realizace dynamického či biodynamického osvětlení",null,null,2000,1,"1,0 - realizace dynamického či biodynamického osvětlení",null,null,null,null,null,null,null,null,null,1.1000000000000001,0.65,0.65,1]
["Podlahová plocha místností v nichž je řešena prostorová akustika (např. přednáškové sály, učebny, apod.)",null,null,null,null,1000,1,null,null,null,null,null,null,null,null,null,null,1.1000000000000001,0.5,0.5,1]
[]
["ANO"]
["NE"]
[]
[]
["Bonus za kombinaci opatření","´+ 2 % za A+1xB"]
[null,"´+ 4 % za A+2xB"]
[null,"kombinace A+C?"]
[]
[]
["Celková podpora","´=A1 nebo A2 + B + C + bonus"]